[Event "35th Roquetas Festival 2024"]
[Site "Roquetas de Mar"]
[Date "2024.01.02"]
[Round "1.1"]
[White "Grigoryan, Karen H."]
[Black "Torres Rebolledo, Alvaro"]
[Result "1-0"]
[ECO "B10"]
[WhiteElo "2643"]
[BlackElo "2076"]
[Annotator "TA"]
[PlyCount "187"]
[EventDate "2024.01.02"]
[EventType "swiss"]
[EventCountry "ESP"]
[SourceTitle "playchess.com"]
[Source "ChessBase"]
[SourceQuality "1"]
[TimeControl "5400+30"]

{[%evp 9,187,-27,-23,-52,-9,-9,-9,0,-8,-12,0,-14,84,78,129,20,14,14,38,0,109,79,167,102,110,96,188,0,168,147,145,171,157,140,148,127,147,148,173,153,215,236,233,243,223,238,230,181,186,119,99,128,158,43,59,43,206,204,243,239,227,223,283,287,270,205,205,205,206,205,205,204,176,164,200,108,132,120,156,127,145,139,161,63,180,155,155,145,142,0,0,0,0,0,0,0,0,0,0,0,0,0,6,0,71,0,0,0,0,0,5929,5161,5368,4795,4690,4557,3311,4725,6783,6783,1001,3424,5052,4839,29973,29976,29976,0,0,0,0,0,0,0,0,0,0,0,0,0,0,0,0,0,0,0,0,0,0,0,0,0,8,8,8,15,139,139,130,122,614,439,29974,29975,29975,29976,29976,29977,29978,29979,29988,29989,29989,29990,29990,3153,29992,495,29993,29994]} 1. e4 {[%emt 0:03:10]} c6 {[%emt 0:00:18]} 2. Ne2 {[%emt 0:00:12]} d5 {[%emt 0:00:36]} 3. e5 {[%emt 0:00:06]} Bf5 {[%emt 0:05:13]} 4. Ng3 {[%emt 0:00:14]} Bg6 {[%emt 0:02:56]} 5. h4 {[%emt 0:00:14]} h5 {[%emt 0:01:42]} 6. e6 {[%emt 0:00:11] B10: Caro-Kann: 2 d3 and 2 c4.} Nf6 {[%emt 0:03:41]} 7. d4 {[%emt 0:00:43]} Qd6 {[%emt 0:03:53]} 8. exf7+ {[%emt 0:00:10] The position is equal.} Bxf7 {[%emt 0:00:50]} 9. Nd2 {[%emt 0:00:32] [#]} Nbd7 $146 {[%emt 0:06:30]} ({Predecessor:} 9... e5 10. dxe5 Qxe5+ 11. Be2 Nbd7 12. Nf3 Qc7 13. O-O Bd6 14. Nf5 O-O-O 15. c3 Ng4 16. Nxd6+ Qxd6 {1-0 Erzhanov,A (2229)-Cagara,P (2045) Titled Tuesday intern op 23rd Nov blitz 2021 (6)}) 10. Nf3 {[%emt 0:00:29]} Bg6 {[%emt 0:07:21]} (10... e5 $11) 11. Bd3 $16 {[%emt 0:00:33]} Ng4 {[%emt 0:02:24]} (11... Ne4 $142) 12. Bxg6+ {[%emt 0:00:46]} (12. Bf4 $16 Qf6 13. Bxg6+ Qxg6 14. O-O) 12... Qxg6 $11 {[%emt 0:00:12]} 13. O-O {[%emt 0:00:15]} O-O-O (13... e5 $5 {[%cal Rf8d6]}) 14. Bg5 {[%emt 0:00:17][%cal Oc2c4]} Ndf6 {[%emt 0:04:52]} (14... Re8 $1 $11) 15. c4 {[%emt 0:01:33]} Ne4 {[%emt 0:04:00]} (15... dxc4 $16 {was worth a try.} 16. Rc1 (16. Qa4 Kb8 $14) 16... e6) 16. Rc1 {[%emt 0:06:25]} (16. Qb1 $18) 16... Nxg5 $16 {[%emt 0:07:07]} 17. Nxg5 {[%emt 0:00:22]} e5 {[%emt 0:02:33]} (17... e6 $16) 18. dxe5 $2 {[%emt 0:00:54]} ({White must play} 18. Qf3 $1 $18 exd4 19. Nf7 (19. cxd5 Ne5 $16)) 18... Bc5 $2 {[%emt 0:02:22]} (18... Be7 $1 $11 {and Black is okay.}) 19. cxd5 {[%emt 0:02:00]} Rxd5 {[%emt 0:01:21] [#]} 20. Qxd5 {[%emt 0:00:18][%mdl 512]} cxd5 {[%emt 0:01:02]} 21. Rxc5+ {[%emt 0:00:08]} Kb8 {[%emt 0:00:57]} 22. Rxd5 {[%emt 0:00:11]} Re8 {[%emt 0:02:58]} 23. e6 {[%emt 0:00:15]} a6 {[%emt 0:11:33]} 24. Rfd1 {[%emt 0:02:07]} Rxe6 {[%emt 0:09:34]} (24... Qf6 $16 {keeps fighting.} 25. R5d2 (25. Nxh5 $2 {is the wrong capture.} Qxf2+ 26. Kh1 Qxh4+ 27. Nh3 Nf2+ 28. Kh2 Nxd1 $19) 25... Qf4) 25. Nxe6 $18 {[%emt 0:00:12]} Qxe6 {[%emt 0:00:45]} 26. Rxh5 {[%emt 0:03:41]} Qxa2 {[%emt 0:02:42]} 27. Rg5 {[%csl LRg4,LRg7]} Qa4 {[%emt 0:00:57]} 28. Rf1 {[%emt 0:02:33]} ({But not} 28. Rd8+ $6 Ka7) 28... Nh6 {[%emt 0:03:24]} 29. Rxg7 {[%emt 0:02:27]} ({White should play} 29. b4 $1 $18) 29... Qxh4 $16 {[%emt 0:01:43]} 30. Rh7 {[%emt 0:03:02] And now Nf5 would win.} Qf4 {[%emt 0:00:37] [#] Prevents Nf5.} 31. Ne4 {[%emt 0:00:59]} Qxe4 $14 {[%emt 0:01:08]} 32. Rxh6 {[%emt 0:00:07][%mdl 4096] Endgame Threatens to win with Rh3. KQ-KRR} Qd4 $2 {[%emt 0:00:15]} (32... Qb4 $1 $14) 33. b3 $18 {[%emt 0:00:21]} Qc3 {[%emt 0:01:42]} 34. Rh3 $1 {[%emt 0:00:07] Prevents Qxb3} Qd4 {[%emt 0:00:20]} 35. Re1 {[%emt 0:00:14]} Ka7 {[%emt 0:00:49]} 36. Rhe3 {[%emt 0:01:02]} a5 {[%emt 0:01:27]} 37. Re4 {[%emt 0:00:08]} Qc3 {[%emt 0:00:38]} 38. R1e3 {[%emt 0:00:10]} Qa1+ {[%emt 0:00:44]} 39. Kh2 $1 {[%emt 0:00:08]} Qh8+ {[%emt 0:00:30]} 40. Rh3 {[%emt 0:00:06]} Qf6 {[%emt 0:00:36]} 41. f4 {[%emt 0:00:41]} Qf5 {[%emt 0:00:28]} 42. Rd4 {[%emt 0:00:10]} (42. Rhe3 $1 $18) 42... Ka6 {[%emt 0:00:59] [#]} 43. Rhd3 $1 {[%emt 0:01:36]} Qg4 {[%emt 0:01:16]} 44. Rd1 {[%emt 0:01:06]} Qh4+ {[%emt 0:01:19]} 45. Kg1 {[%emt 0:00:07]} Qg4 {[%emt 0:00:29]} 46. b4 {[%emt 0:00:45]} ({White should try} 46. R1d3 $18) 46... axb4 {[%emt 0:01:17]} (46... a4 $1 $14) 47. Rb1 {[%emt 0:00:15]} Qf5 {[%emt 0:01:47]} 48. Rdxb4 {[%emt 0:00:10]} b5 {[%emt 0:00:24]} 49. g3 {[%emt 0:03:46]} (49. R1b3 $16) 49... Qc5+ $1 $11 {[%emt 0:00:50]} 50. Kf1 {[%emt 0:00:15]} Qd5 {[%emt 0:00:26]} 51. R1b3 {[%emt 0:00:37]} Qh1+ {[%emt 0:00:26]} 52. Kf2 {[%emt 0:00:06][%cal Of4f5]} Qh2+ {[%emt 0:00:09]} 53. Kf3 {[%emt 0:00:06] aiming for f5.} (53. Kf1 $5 Qh1+ $8 54. Kf2 Qh2+ 55. Ke3 $11) 53... Qh5+ {[%emt 0:00:14]} 54. Ke3 {[%emt 0:00:35] Black must now prevent Rxb5.} Qh3 {[%emt 0:01:08]} 55. Kd4 {[%emt 0:01:09]} Qd7+ {[%emt 0:00:04]} 56. Kc3 {[%emt 0:00:07]} Qc6+ {[%emt 0:00:46] [#]} (56... Qh3 $11 {remains equal.}) 57. Kb2 {[%emt 0:00:20]} ({Better is} 57. Kd3 $1 $16 {Rxb5 would be deadly.} Qd5+ 58. Ke3) 57... Qg2+ $1 {[%emt 0:00:05]} 58. Ka1 {[%emt 0:00:13]} Qg1+ {[%emt 0:00:54]} 59. Ka2 {[%emt 0:00:11]} Qd1 $2 {[%emt 0:01:01][%mdl 8192]} (59... Qg2+ $11 60. Rb2 (60. Ka3 Qg1 $11) 60... Qxg3) 60. Rxb5 $18 {[%emt 0:01:40]} Qc2+ {[%emt 0:00:57]} 61. Ka3 {[%emt 0:00:06]} Qc1+ {[%emt 0:01:07]} 62. Kb4 {[%emt 0:00:11]} Qe1+ {[%emt 0:00:50]} 63. Kc5 {[%emt 0:00:07]} Qe7+ {[%emt 0:00:19]} 64. Kd4 {[%emt 0:00:06]} Qg7+ {[%emt 0:01:12]} 65. Ke4 {[%emt 0:00:08]} Qe7+ {[%emt 0:00:27]} 66. Kf3 {[%emt 0:00:06]} Qe1 {[%emt 0:00:56]} 67. Rb6+ {[%emt 0:00:09]} Ka7 {[%emt 0:00:30]} 68. f5 $2 {[%emt 0:00:21]} (68. R6b4 {mates} Qf1+ 69. Ke4 Qe2+ 70. Kd5 Qh5+ 71. Kd4 Qa5 72. Rb7+ Ka6 73. R3b6+ Qxb6+ 74. Rxb6+ Kxb6 75. Kd5) 68... Qf1+ {[%emt 0:00:33]} 69. Kg4 {[%emt 0:00:21]} Qc4+ {[%emt 0:00:30]} 70. Kg5 {[%emt 0:00:21]} Qg8+ {[%emt 0:00:04]} 71. Kf4 {[%emt 0:01:00]} Qc4+ {[%emt 0:00:01]} 72. Ke5 {[%emt 0:00:08]} Qc5+ {[%emt 0:00:10]} 73. Kf6 {[%emt 0:02:17]} Qf8+ $1 {[%emt 0:00:36]} 74. Kg5 {[%emt 0:00:12]} Qg8+ {[%emt 0:00:09]} 75. Kh4 {[%emt 0:00:09] Intending Rb7+ and mate.} Qh8+ {[%emt 0:00:47]} 76. Kg4 {[%emt 0:00:08]} Qg8+ {[%emt 0:00:10]} 77. Kf4 {[%emt 0:00:54]} Qc4+ {[%emt 0:00:18]} 78. Ke3 $1 {[%emt 0:00:00] R6b4 would kill now.} Qc5+ $1 {[%emt 0:00:26]} 79. Kd2 {[%emt 0:00:00]} Qd4+ {[%emt 0:00:36]} 80. Kc1 {[%emt 0:00:00]} Qc4+ {[%emt 0:00:35]} 81. Kb1 {[%emt 0:00:46]} Qe4+ $1 {[%emt 0:00:06]} 82. Ka2 {[%emt 0:01:59][%cal Ob6b7]} Qc2+ {[%emt 0:00:06]} (82... Qxf5 $11 83. R6b4 Qc2+ 84. Ka3 Qc1+ 85. Ka2 Qc2+ 86. Ka3 Qc1+ 87. Ka2 Qc2+) 83. Ka3 $16 {[%emt 0:00:08] White wants to mate with R6b4.} Qc1+ {[%emt 0:00:27]} 84. Ka4 {[%emt 0:00:12] White threatens Rb7+ and mate.} Qc4+ $2 {[%emt 0:00:10][%mdl 8192]} (84... Qd1 $16 85. R6b5 Qd4+ 86. R5b4 Qa1+ 87. Kb5 Kb7 88. Kc5+ Kc7 89. Rb7+ Kd8) 85. Ka5 $18 {[%emt 0:00:24] Threatening mate with Rb7+.} Qc5+ {[%emt 0:01:33]} (85... Qd5+ $18 86. R6b5 Qd2+ 87. Ka4 Qd4+ 88. R5b4 Qa1+ 89. Kb5 Kb7 90. Kc5+ Kc7 91. Rb7+ Kd8) 86. R6b5 {[%emt 0:00:09]} Qc7+ {[%emt 0:01:43]} 87. Kb4 {[%emt 0:01:02]} Qd6+ {[%emt 0:00:14]} 88. Kc4 {[%emt 0:00:07]} Qc6+ {[%emt 0:00:31]} 89. Kd4 {[%emt 0:00:19]} Qd7+ {[%emt 0:00:55]} 90. Ke3 {[%emt 0:00:13][%cal Rb5a5]} Ka6 {[%emt 0:01:35]} 91. Rb6+ {[%emt 0:00:18]} Ka5 {[%emt 0:00:11]} 92. f6 {[%emt 0:00:13]} (92. Rb7 $142 Qe8+ 93. Kf2 Ka4 94. Rb1 Qe5 95. Ra7+ Qa5 96. Rxa5+ Kxa5 97. f6) 92... Qd1 {[%emt 0:00:41]} 93. R3b5+ {[%emt 0:00:08]} Ka4 {[%emt 0:00:12]} 94. Rb1 {[%emt 0:00:04] Repels Qc1+.   Weighted Error Value: White=0.25 (precise) /Black=0.30} 1-0

[Event "35th Roquetas Festival 2024"]
[Site "Roquetas de Mar"]
[Date "2024.01.02"]
[Round "1.2"]
[White "Juan Lepp, Jaime Boris"]
[Black "Peng, Li Min"]
[Result "0-1"]
[ECO "B06"]
[WhiteElo "2075"]
[BlackElo "2575"]
[Annotator "TA"]
[PlyCount "84"]
[EventDate "2024.01.02"]
[EventType "swiss"]
[EventCountry "ESP"]
[SourceTitle "playchess.com"]
[Source "ChessBase"]
[SourceQuality "1"]
[TimeControl "5400+30"]

{[%evp 10,84,41,25,45,35,59,22,3,5,50,35,81,69,47,66,77,28,19,0,16,19,20,0,6,0,0,0,0,-40,-23,-49,-58,-154,-146,-147,-146,-152,-150,-148,-105,-187,-133,-120,-122,-117,-122,-169,-163,-235,-225,-236,-257,-830,-812,-796,-795,-783,-713,-756,-577,-565,-560,-664,-597,-1341,-1264,-29991,-2752,-29975,-29976,-5622,-6052,-29989,-29990,-29989,-29990]} 1. e4 g6 2. d4 Bg7 3. Nc3 d6 4. Be3 a6 5. Nf3 b5 6. Bd3 Nd7 {B06: Modern Defence.} 7. O-O c5 8. a4 b4 {And now ...cxd4 would win. The position is equal.} 9. Ne2 Qc7 {[#]} 10. c3 $146 ({Predecessor:} 10. c4 Bb7 11. Qd2 Ngf6 12. Ng3 Ng4 13. Rad1 a5 14. b3 O-O-O 15. Bg5 f6 16. Be3 {1-0 Huang,A (2152)-Treger,E (2176) Washington Congress 3rd 2016 (7)}) 10... c4 (10... bxc3 $14 {was preferrable.} 11. bxc3 (11. Nxc3 Ngf6 $14) 11... c4) 11. Bb1 $16 b3 12. Nd2 a5 {[#]} 13. f4 (13. d5 $1 $16) 13... Ngf6 $11 14. Ng3 Bb7 15. Qe2 Rc8 16. e5 Nd5 17. Nde4 O-O {[%cal Rd6e5]} 18. e6 fxe6 {White must now prevent ...Bh6.} 19. Ng5 Rf6 $36 {[%mdl 2048] Black has good play.} 20. N3e4 Nf8 {[%cal Oe6e5]} 21. Nxf6+ (21. Bd2 $15) 21... exf6 $17 22. Nf3 f5 {[%mdl 1024] Black has strong compensation.} 23. Bd2 Re8 24. Re1 Nb6 {Black has more active pieces.} 25. h4 (25. h3 $17) 25... Bd5 ({Black should play} 25... Nd5 $19 26. h5 Nf6 27. hxg6 hxg6) 26. h5 Qc6 27. Nh4 Bf6 28. Qf2 (28. Nf3 $17 {was necessary.}) 28... Nxa4 29. hxg6 (29. Bc1 $142) 29... Nxg6 $19 (29... Nxb2 30. gxh7+ Kxh7 31. Rxa5 $11) ({Inferior is} 29... hxg6 30. Bc1 $17) 30. Nxg6 hxg6 {White is weak on the light squares} 31. g4 $2 (31. Re2) 31... Kf7 {Threatens to win with ...Rh8.} 32. g5 {[#]} Rh8 $1 {[%csl Gc6,Gd5][%cal Rh8h1]} 33. Qg3 Bd8 34. Bc1 Qb5 35. Kf2 Bc6 36. Ke3 Qd5 37. Re2 {[#]} e5 $1 {[%mdl 512]} 38. Rh2 (38. Rxa4 exd4+) 38... exd4+ (38... exf4+ $142 39. Qxf4 Bxg5 40. Ke2 Bxf4 41. Bxf4 Rxh2+ {[%mdl 64] Remove Defender} 42. Bxh2 Qg2+ {[%mdl 64] Skewer, Double Attack} 43. Ke3 Qf3+ 44. Kd2 Qf2+ {[%mdl 64] Skewer, Double Attack} 45. Kd1 Bf3+ 46. Kc1 Qxb2#) 39. Kf2 Rxh2+ 40. Qxh2 d3 41. Bd2 Bb6+ 42. Ke1 Qe4+ {Artfully played by Peng.   Weighted Error Value: White=0.90/Black=0.33} 0-1

[Event "35th Roquetas Festival 2024"]
[Site "Roquetas de Mar"]
[Date "2024.01.02"]
[Round "1.3"]
[White "Bernadskiy, Vitaliy"]
[Black "Fernandez, Maria Florencia"]
[Result "1-0"]
[ECO "B77"]
[WhiteElo "2566"]
[BlackElo "2074"]
[Annotator "TA"]
[PlyCount "75"]
[EventDate "2024.01.02"]
[EventType "swiss"]
[EventCountry "ESP"]
[SourceTitle "playchess.com"]
[Source "ChessBase"]
[SourceQuality "1"]
[TimeControl "5400+30"]

{[%evp 18,75,35,23,60,74,21,16,75,55,74,41,102,35,114,133,107,112,195,199,185,229,229,131,122,112,152,139,135,123,108,115,144,163,185,132,199,41,54,0,206,182,185,177,189,216,204,196,246,230,228,139,115,35,33,30,431,309,29989,29990]} 1. e4 {[%emt 0:08:16]} c5 {[%emt 0:00:08]} 2. Nf3 {[%emt 0:00:05]} d6 {[%emt 0:00:10]} 3. d4 {[%emt 0:00:05]} cxd4 {[%emt 0:00:04]} 4. Nxd4 {[%emt 0:00:03]} Nf6 {[%emt 0:00:04]} 5. Nc3 {[%emt 0:00:04]} g6 {[%emt 0:00:04]} 6. Be3 {[%emt 0:00:40]} Bg7 {[%emt 0:00:06]} 7. f3 {[%emt 0:00:04]} O-O {[%emt 0:00:04]} 8. Qd2 {[%emt 0:00:07]} Nc6 {[%emt 0:00:04]} 9. Bc4 {[%emt 0:00:04]} Bd7 {[%emt 0:02:49]} 10. h4 {[%emt 0:00:14][%cal Bh2h4,Bh4h5][%mdl 32]} Na5 {[%emt 0:02:29] B77: Sicilian Dragon: Yugoslav Attack, 9 Bc4 sidelines.} 11. Be2 {[%emt 0:00:15]} Rc8 {[%emt 0:02:42]} (11... Nh5 $16) 12. g4 {[%emt 0:00:24]} Nc4 {[%emt 0:09:40]} (12... h5 $1 $11) 13. Bxc4 $16 {[%emt 0:01:16]} Rxc4 {[%emt 0:00:04]} 14. h5 {[%emt 0:00:05]} (14. Qd3 $5 {[%cal Rd3c4]} Qc8 15. h5 $14) 14... Qa5 {[%emt 0:10:27] [#]} (14... b5 $1 $14) 15. Nb3 {[%emt 0:00:21]} (15. O-O-O $1 $16) 15... Qc7 {[%emt 0:07:28]} (15... Qe5 $14) 16. O-O-O {[%emt 0:00:19]} (16. Bxa7 $2 b6 17. h6 Bh8 $19) (16. h6 Bh8 $11) 16... Rc8 {[%emt 0:08:49]} 17. hxg6 {[%emt 0:00:08]} (17. Bxa7 $2 b6 18. h6 Bh8 $19) 17... hxg6 {[%emt 0:12:13] [#]} (17... fxg6 $16 {might work better.} 18. Kb1 Be8) 18. e5 $1 $18 {[%emt 0:02:21] [#]} Nxg4 $146 {[%emt 0:11:54]} (18... dxe5 19. g5 (19. Bxa7 b6 $17) 19... Ng4 20. fxg4 Bxg4 21. Rdf1 $16) ({Predecessor:} 18... Ne8 19. exd6 Nxd6 20. Bd4 Rxd4 21. Nxd4 Qa5 22. Kb1 Nc4 23. Qe1 Nxb2 24. Nb3 Qc7 25. Rc1 Qxc3 26. Qxc3 Bxc3 27. Rh2 Nc4 28. Re2 Na3# {0-1 Omichi,H (1071)-Balderas Garza,A (1956) Windsor NAYCC U12 2016 (3.92)}) 19. fxg4 {[%emt 0:00:19]} Bxg4 {[%emt 0:00:03]} 20. Rdg1 {[%emt 0:02:20]} (20. Qh2 $18 {Threatens to win with Qh7+.} Bh5 21. exd6 exd6 22. Bd4 (22. Rxd6 Bxc3 23. bxc3 Rxc3 $11)) 20... dxe5 $16 {[%emt 0:05:06]} 21. Bh6 {[%emt 0:05:14] White is more active.} (21. Bxa7 $2 {loses.} b6 22. Rh4 Be6 23. Rxc4 Bxc4 24. Bxb6 Qxb6 $19) 21... Bf6 {[%emt 0:01:52]} 22. Bg5 {[%emt 0:01:25] Bxf6 would kill now.} Bg7 {[%emt 0:05:35] Repels Bxf6} 23. Qh2 $36 {[%emt 0:04:27][%mdl 2048] Black must now prevent Qh7+. White is on the roll.} Bh5 {[%emt 0:02:43]} 24. Kb1 {[%emt 0:00:06]} e6 {[%emt 0:03:33] Repels Nd5} 25. Qf2 {[%emt 0:00:11]} f5 {[%emt 0:07:04]} 26. Bc1 {[%emt 0:00:41]} ({Resist} 26. Qxa7 $6 Bf3 $16) ({White should play} 26. Bh6 $18 Bxh6 27. Rxh5) 26... a6 {[%emt 0:01:45]} (26... Kf8 $16) 27. Nd2 $2 {[%emt 0:02:41]} (27. Bh6 $1 $18 Bxh6 28. Rxh5) 27... Rb4 $14 {[%emt 0:02:39]} (27... Rxc3 $2 28. bxc3 Qxc3 29. Bb2 Qxc2+ 30. Ka1 $16) 28. Nb3 {[%emt 0:01:41]} ({White should try} 28. Rh3 $14) 28... b5 $2 {[%emt 0:00:42] [#]} (28... Rc4 $1 $11 {and Black stays safe.}) 29. Bh6 $1 $18 {[%emt 0:00:32][%mdl 512]} Rg4 {[%emt 0:02:43]} 30. Rxg4 {[%emt 0:00:07]} Bxg4 {[%emt 0:00:07]} 31. Bxg7 {[%emt 0:00:04]} Kxg7 {[%emt 0:00:54]} 32. a3 {[%emt 0:00:32]} Rh8 {[%emt 0:01:44]} (32... Bh5 $142 33. Qe3 Kf7) 33. Rxh8 {[%emt 0:00:04]} Kxh8 {[%emt 0:00:03]} 34. Nc5 {[%emt 0:00:06] Strongly threatening Qh4+.} Qd6 {[%emt 0:00:46]} 35. Qh2+ {[%emt 0:00:04]} (35. Qh4+ $16 Kg7 36. b4) 35... Kg7 $1 $14 {[%emt 0:00:39]} 36. Nd3 {[%emt 0:00:04]} Kf6 {[%emt 0:00:36][%mdl 8192]} (36... f4 $11 {and Black is okay.}) 37. Nxe5 {[%emt 0:00:47]} Qd4 {[%emt 0:00:34]} (37... Bh5 $18) 38. Qh8+ {[%emt 0:00:11] Weighted Error Value: White=0.30/Black=0.62} 1-0

[Event "35th Roquetas Festival 2024"]
[Site "Roquetas de Mar"]
[Date "2024.01.02"]
[Round "1.4"]
[White "Diaz Mino, Daniel"]
[Black "Sosa, Tomas"]
[Result "0-1"]
[ECO "B31"]
[WhiteElo "2074"]
[BlackElo "2554"]
[Annotator "TA"]
[PlyCount "72"]
[EventDate "2024.01.02"]
[EventType "swiss"]
[EventCountry "ESP"]
[SourceTitle "playchess.com"]
[Source "ChessBase"]
[SourceQuality "1"]
[TimeControl "5400+30"]

{[%evp 22,72,36,30,27,32,36,22,28,39,40,31,34,14,88,84,79,31,29,30,23,26,39,30,33,31,34,26,46,-25,-46,-22,-15,-29,-5,-33,-34,-75,-74,-119,-112,-167,-135,-438,-430,-525,-486,-534,-528,-528,-504,-495,-494]} 1. e4 c5 {[%emt 0:00:30]} 2. Nf3 {[%emt 0:02:17]} Nc6 {[%emt 0:00:06]} 3. Bb5 {[%emt 0:00:05]} g6 {[%emt 0:01:30]} 4. Bxc6 {[%emt 0:00:05]} bxc6 {[%emt 0:01:31]} 5. O-O {[%emt 0:00:36]} Bg7 {[%emt 0:00:11]} 6. Re1 {[%emt 0:06:42]} f6 {[%emt 0:00:07]} 7. c3 {[%emt 0:03:39]} Nh6 {[%emt 0:00:32]} 8. d4 {[%emt 0:08:30]} cxd4 {[%emt 0:00:07]} 9. cxd4 {[%emt 0:00:04]} O-O {[%emt 0:00:10]} 10. Nc3 {[%emt 0:01:27][%cal Bb1c3,Bc3e2,Be2g3,Bg3e4][%mdl 32]} Rb8 {[%emt 0:00:32]} 11. h3 {[%emt 0:10:55]} d6 {[%emt 0:00:41]} 12. b3 {[%emt 0:03:59]} Nf7 {[%emt 0:03:25] B31: Sicilian: 2...Nc6 3 Bb5 g6.} 13. Qc2 {[%emt 0:07:24]} Qa5 {[%emt 0:01:16]} 14. Bb2 {[%emt 0:08:43]} Qh5 {[%emt 0:00:22][%cal Oc8h3] [#] The position is equal.} 15. Ne2 $146 {[%emt 0:02:07]} ({Predecessor:} 15. Qd3 g5 16. Nh2 Qg6 17. Rad1 h5 18. Ne2 f5 19. exf5 Bxf5 20. Qe3 g4 21. hxg4 hxg4 {1-0 Jeran,B (2236)-De Abreu,R (2110) PRO League Eastern rapid 2017 (4)}) 15... Bd7 {[%emt 0:00:28]} 16. Ng3 {[%emt 0:02:02]} Qb5 {[%emt 0:00:26]} 17. Rad1 {[%emt 0:06:47][%cal Oe4e5]} Rfc8 {[%emt 0:07:22] [#]} (17... Rfe8 $11 {remains equal.}) 18. e5 $1 $16 {[%emt 0:01:38] aiming for e6.} Qd5 {[%emt 0:01:39][%cal Od7h3]} (18... Be8 19. h4) 19. Qe4 {[%emt 0:02:17]} (19. Qe2 $16 {e6 would be deadly.} Be8 20. Ne4) 19... Qxe4 {[%emt 0:05:40]} 20. Nxe4 {[%emt 0:06:19]} fxe5 {[%emt 0:06:15]} 21. dxe5 {[%emt 0:00:08]} Bf5 {[%emt 0:00:22]} 22. Ng3 {[%emt 0:03:05]} e6 {[%emt 0:10:44]} 23. Re2 {[%emt 0:03:47] And now Nxf5 would win.} d5 {[%emt 0:01:09]} 24. Nxf5 {[%emt 0:01:31]} gxf5 {[%emt 0:00:09]} 25. Nd4 {[%emt 0:01:41]} (25. Rd4 $14) 25... Nd8 $1 $11 {[%emt 0:00:01]} 26. f4 {[%emt 0:04:41]} c5 {[%emt 0:00:16]} 27. Nf3 {[%emt 0:00:49]} Bh6 {[%emt 0:06:27]} (27... a5 $5 {[%cal Ra5a4]}) 28. g3 {[%emt 0:00:26]} a5 {[%emt 0:01:48][%cal Ba7a5,Ba5a4][%mdl 32]} 29. Rc2 {[%emt 0:05:48] [#]} a4 $1 {[%emt 0:00:45]} 30. Nd2 {[%emt 0:00:04]} (30. bxa4 Ra8) 30... Bf8 {[%emt 0:02:00]} 31. Ba3 {[%emt 0:01:02]} (31. bxa4 $17 Ra8 32. Bc3) 31... Nc6 {[%emt 0:00:17][%cal Bd8c6,Bc6d4,Bd4b5,Bb5c3][%mdl 32] White must now prevent ...Nd4.} 32. Rc3 $2 {[%emt 0:01:56][%mdl 8192] This costs White the game.} (32. bxa4 $17 Ra8 33. Nb3 (33. Bxc5 $2 {is the wrong capture.} Nd4 $19)) 32... Nd4 $19 {[%emt 0:00:31] ...Ne2+ is the strong threat. Black is clearly winning.} 33. Kf2 {[%emt 0:00:02] Prevents Ne2.} Nb5 {[%emt 0:00:07]} 34. Bb2 {[%emt 0:01:02]} Nxc3 {[%emt 0:02:23]} 35. Bxc3 {[%emt 0:00:03]} axb3 {[%emt 0:00:07]} 36. axb3 {[%emt 0:00:08]} Ra8 {[%emt 0:00:04] Weighted Error Value: White=0.35/Black=0.10 (very precise)} 0-1